lending/lending_fUSD_20260310
["ID","MTS","AMOUNT","RATE_DAILY","PERIOD"]
[408151510,1773180649051,-1250.51,0.00019726,2]
[408151511,1773180649060,-1250.51,0.00019726,2]
[408151512,1773180649070,-1250.51,0.00019726,2]
[408151513,1773180649079,-1250.51,0.00019726,2]
[408151514,1773180649091,-1250.51,0.00019726,2]
[408151515,1773180649100,-1250.51,0.00019726,2]
[408151516,1773180649110,-1250.51,0.00019726,2]
[408151517,1773180649120,-1250.51,0.00019726,2]
[408151518,1773180649129,-1250.51,0.00019726,2]
[408151519,1773180649143,-1250.51,0.00019726,2]
[408151520,1773180649153,-1250.51,0.00019726,2]
[408151521,1773180649162,-1250.51,0.00019726,2]
[408151522,1773180649172,-1250.51,0.00019726,2]
[408151523,1773180649181,-1250.51,0.00019726,2]
[408151524,1773180649191,-1250.51,0.00019726,2]
[408151525,1773180649201,-1250.51,0.00019726,2]
[408151526,1773180649210,-1250.51,0.00019726,2]
[408151527,1773180649220,-1250.51,0.00019726,2]
[408151528,1773180649230,-1250.51,0.00019726,2]
[408151529,1773180649239,-1250.51,0.00019726,2]
[408151530,1773180649249,-1250.51,0.00019726,2]
[408151531,1773180649258,-1250.68103818,0.00019726,2]
[408151532,1773180649267,-3879.672,0.00019726,2]
[408151533,1773180649276,-172.244,0.00019726,2]
[408151534,1773180649285,-500.0,0.00019726,2]
[408151535,1773180649295,-500.0,0.00019726,2]
[408151536,1773180649305,-524.54846384,0.00019726,2]
[408151537,1773180649314,-5164.900926,0.00019726,2]
[408151538,1773180649323,-5164.900926,0.00019726,2]
[408151539,1773180649332,-5164.900926,0.00019726,2]
[408151540,1773180649345,-500.0,0.00019726,2]
[408151541,1773180649354,-500.0,0.00019726,2]
[408151542,1773180649363,-500.0,0.00019726,2]
[408151543,1773180649372,-243.10314305,0.00019726,2]
[408151544,1773180649381,-300.0,0.00019726,2]
[408151545,1773180649390,-300.0,0.00019726,2]
[408151546,1773180649399,-300.0,0.00019726,2]
[408151547,1773180649408,-300.0,0.00019726,2]
[408151548,1773180649418,-300.0,0.00019726,2]
[408151549,1773180649427,-300.0,0.00019726,2]
[408151550,1773180649436,-300.0,0.00019726,2]
[408151551,1773180649445,-300.0,0.00019726,2]
[408151552,1773180649454,-300.0,0.00019726,2]
[408151553,1773180649463,-300.0,0.00019726,2]
[408151554,1773180649472,-300.0,0.00019726,2]
[408151555,1773180649481,-300.0,0.00019726,2]
[408151556,1773180649490,-302.3241753,0.00019726,2]
[408151557,1773180649499,-368.24578885,0.00019726,2]
[408151558,1773180649509,-250.0,0.00019761,2]
[408151559,1773180649518,-250.0,0.00019774,2]
[408151560,1773180649528,-500.0,0.00019781,7]
[408151561,1773180649537,-2000.0,0.000198,2]
[408151562,1773180649547,-1248.46821,0.000198,2]
[408151563,1773180649556,-1248.46821,0.000198,2]
[408151564,1773180649565,-1741.0,0.000198,7]
[408151565,1773180649575,-250.0,0.000198,2]
[408151566,1773180649584,-1000.0,0.00019822,2]
[408151567,1773180649594,-250.0,0.00019829,2]
[408151568,1773180649603,-178.66,0.00019843,2]
[408151569,1773180649612,-350.0,0.00019861,2]
[408151570,1773180649622,-20033.9074827,0.0001987,2]
[408151571,1773180649631,-250.0,0.0001987,2]
[408151572,1773180649640,-7342.55712531,0.00019883,2]
[408151573,1773180649649,-15898.61407384,0.00019883,2]
[408151574,1773180649658,-500.0,0.00019898,2]
[408151575,1773180649667,-350.0,0.00019899,2]
[408151576,1773180649676,-4473.8803,0.000199,2]
[408151577,1773180649687,-196.35757158,0.000199,2]
[408151578,1773180649698,-610.75366744,0.000199,3]
[408151579,1773180649708,-757.9640289,0.000199,2]
[408151580,1773180649717,-541.08770395,0.000199,2]
[408151581,1773180649726,-250.0,0.000199,2]
[408151582,1773180649737,-5360.27389109,0.000199,2]
[408151583,1773180649746,-161.2390476,0.000199,2]
[408151584,1773180649755,-6273.67906402,0.000199,2]
[408151585,1773180649764,-194.33339666,0.000199,2]
[408151586,1773180649774,-235.8695406,0.000199,2]
[408151587,1773180649783,-2960.0,0.000199,2]
[408151588,1773180649792,-4459.53,0.00019902,2]
[408151589,1773180649802,-750.51,0.00019902,2]
[408151590,1773180649811,-18296.7,0.00019902,2]
[408151591,1773180649820,-178.66,0.00019911,2]
[408151592,1773180649830,-250.0,0.00019913,2]
[408151593,1773180649840,-250.0,0.00019932,2]
[408151594,1773180649850,-781.59,0.00019935,2]
[408151595,1773180649858,-510.25,0.00019972,2]
[408151596,1773180649868,-500.0,0.00019972,2]
[408151597,1773180649877,-200.0,0.00019973,2]
[408151598,1773180649886,-150.166,0.00019973,2]
[408151599,1773180649895,-150.0,0.00019973,2]
[408151600,1773180649904,-150.193,0.00019973,2]
[408151601,1773180649914,-150.0,0.00019973,2]
[408151602,1773180649923,-150.0,0.00019973,2]
[408151603,1773180649933,-150.0,0.00019973,2]
[408151604,1773180649943,-150.379,0.00019973,2]
[408151605,1773180649951,-1342.0,0.00019973,2]
[408151606,1773180649961,-619.0,0.00019973,2]
[408151607,1773180649970,-3505.0,0.00019973,2]
[408151608,1773180649980,-500.0,0.00019973,2]
[408151609,1773180649989,-500.0,0.00019973,2]
[408151610,1773180649999,-500.0,0.00019973,2]
[408151611,1773180650009,-500.0,0.00019973,2]
[408151612,1773180650018,-500.0,0.00019973,2]
[408151613,1773180650029,-500.0,0.00019973,2]
[408151614,1773180650038,-500.0,0.00019973,2]
[408151615,1773180650048,-500.0,0.00019973,2]
[408151616,1773180650057,-500.0,0.00019973,2]
[408151617,1773180650067,-150.0,0.00019973,2]
[408151618,1773180650076,-500.0,0.00019973,2]
[408151619,1773180650085,-500.0,0.00019973,2]
[408151620,1773180650095,-500.0,0.00019973,2]
[408151621,1773180650104,-500.0,0.00019973,2]
[408151622,1773180650113,-500.0,0.00019973,2]
[408151623,1773180650123,-150.0,0.00019973,2]
[408151624,1773180650133,-165.86350306,0.00019973,2]
[408151625,1773180650142,-350.0,0.00019973,3]
[408151626,1773180650152,-250.0,0.00019973,2]
[408151627,1773180650161,-119474.15553073,0.0001998,2]
[408151628,1773180650171,-48095.32186096,0.0001998,3]
[408151629,1773180650180,-2825.43593895,0.0001998,5]
[408151630,1773180650190,-151.0,0.0001998,2]
[408151631,1773180650199,-216.911124,0.00019982,2]
[408151632,1773180650208,-795.22,0.00019982,2]
[408151633,1773180650218,-795.22,0.00019982,2]
[408151634,1773180650227,-795.22,0.00019982,2]
[408151635,1773180650236,-1095.49569653,0.00019982,5]
[408151636,1773180650245,-500.0,0.00019982,2]
[408151637,1773180650255,-500.0,0.00019982,2]
[408151638,1773180650264,-500.0,0.00019982,2]
[408151639,1773180650273,-500.0,0.00019982,2]
[408151640,1773180650282,-302.61,0.00019982,2]
[408151641,1773180650291,-500.0,0.00019982,2]
[408151642,1773180650300,-500.0,0.00019982,2]
[408151643,1773180650310,-500.0,0.00019982,2]
[408151644,1773180650319,-48434.9304141,0.00019983,2]
[408151645,1773180650328,-16750.0222142,0.00019983,2]
[408151646,1773180650337,-695440.9701234,0.00019983,2]
[408151647,1773180650346,-8260.552815,0.00019983,2]
[408151648,1773180650356,-134598.4552733,0.00019983,2]
[408151649,1773180650365,-207.334735,0.00019983,2]
[408151650,1773180650375,-260.9008,0.00019983,2]
[408151651,1773180650384,-151.0,0.00019983,2]
[408151652,1773180650393,-153.123442,0.00019983,2]
[408151653,1773180650403,-151.0,0.00019983,2]
[408151654,1773180650412,-151.0,0.00019983,2]
[408151655,1773180650422,-461.802123,0.00019983,2]
[408151656,1773180650431,-461.802123,0.00019983,2]
[408151657,1773180650441,-461.802123,0.00019983,2]
[408151658,1773180650450,-193.059213,0.00019983,2]
[408151659,1773180650459,-461.802123,0.00019983,2]
[408151660,1773180650469,-193.059213,0.00019983,2]
[408151661,1773180650478,-193.059213,0.00019983,2]
[408151662,1773180650488,-193.059213,0.00019983,2]
[408151663,1773180650497,-487.039908,0.00019983,2]
[408151664,1773180650507,-487.039908,0.00019983,2]
[408151665,1773180650517,-487.039908,0.00019983,2]
[408151666,1773180650527,-487.039908,0.00019983,2]
[408151667,1773180650538,-151.0,0.00019983,2]
[408151668,1773180650547,-151.0,0.00019983,2]
[408151669,1773180650557,-783.401532,0.00019983,2]
[408151670,1773180650567,-783.401532,0.00019983,2]
[408151671,1773180650577,-783.401532,0.00019983,2]
[408151672,1773180650588,-783.401532,0.00019983,2]
[408151673,1773180650598,-183.911991,0.00019983,2]
[408151674,1773180650608,-183.911991,0.00019983,2]
[408151675,1773180650618,-151.0,0.00019983,2]
[408151676,1773180650628,-291.106941,0.00019983,2]
[408151677,1773180650637,-291.106941,0.00019983,2]
[408151678,1773180650647,-291.106941,0.00019983,2]
[408151679,1773180650658,-291.106941,0.00019983,2]
[408151680,1773180650668,-151.0,0.00019983,2]
[408151681,1773180650677,-151.0,0.00019983,2]
[408151682,1773180650687,-168.456418,0.00019983,2]
[408151683,1773180650700,-151.0,0.00019983,2]
[408151684,1773180650710,-151.0,0.00019983,2]
[408151685,1773180650720,-151.0,0.00019983,2]
[408151686,1773180650730,-239.902116,0.00019983,2]
[408151687,1773180650742,-151.0,0.00019983,2]
[408151688,1773180650752,-239.902116,0.00019983,2]
[408151689,1773180650762,-239.902116,0.00019983,2]
[408151690,1773180650772,-239.902116,0.00019983,2]
[408151691,1773180650782,-151.0,0.00019983,2]
[408151692,1773180650791,-188.673291,0.00019983,2]
[408151693,1773180650801,-179.928038,0.00019983,2]
[408151694,1773180650810,-179.928038,0.00019983,2]
[408151695,1773180650821,-179.928038,0.00019983,2]
[408151696,1773180650831,-179.928038,0.00019983,2]
[408151697,1773180650842,-151.0,0.00019983,2]
[408151698,1773180650852,-151.0,0.00019983,2]
[408151699,1773180650862,-1497.653909,0.00019983,2]
[408151700,1773180650871,-626.635534,0.00019983,2]
[408151701,1773180650881,-151.0,0.00019983,2]
[408151702,1773180650891,-1497.653909,0.00019983,2]
[408151703,1773180650901,-626.635534,0.00019983,2]
[408151704,1773180650911,-1497.653909,0.00019983,2]
[408151705,1773180650922,-626.635534,0.00019983,2]
[408151706,1773180650932,-626.635534,0.00019983,2]
[408151707,1773180650942,-1497.653909,0.00019983,2]
[408151708,1773180650952,-151.0,0.00019983,2]
[408151709,1773180650962,-151.0,0.00019983,2]
[408151710,1773180650972,-151.0,0.00019983,2]
[408151711,1773180650982,-151.0,0.00019983,2]
[408151712,1773180650992,-151.0,0.00019983,2]
[408151713,1773180651002,-151.0,0.00019983,2]
[408151714,1773180651012,-151.0,0.00019983,2]
[408151715,1773180651023,-151.0,0.00019983,2]
[408151716,1773180651032,-1077.496139,0.00019983,2]
[408151717,1773180651042,-221.092189,0.00019983,2]
[408151718,1773180651051,-1077.496139,0.00019983,2]
[408151719,1773180651061,-221.092189,0.00019983,2]
[408151720,1773180651071,-1077.496139,0.00019983,2]
[408151721,1773180651081,-221.092189,0.00019983,2]
[408151722,1773180651091,-1077.496139,0.00019983,2]
[408151723,1773180651101,-221.092189,0.00019983,2]
[408151724,1773180651111,-353.24124,0.00019983,2]
[408151725,1773180651120,-353.24124,0.00019983,2]
[408151726,1773180651130,-353.24124,0.00019983,2]
[408151727,1773180651140,-353.24124,0.00019983,2]
[408151728,1773180651149,-1049.331122,0.00019983,2]
[408151729,1773180651159,-1049.331122,0.00019983,2]
[408151730,1773180651169,-1049.331122,0.00019983,2]
[408151731,1773180651178,-1049.331122,0.00019983,2]
[408151732,1773180651187,-5000.0,0.00019983,2]
[408151733,1773180651197,-5000.0,0.00019983,2]
[408151734,1773180651206,-5000.0,0.00019983,2]
[408151735,1773180651216,-5000.0,0.00019983,2]
[408151736,1773180651226,-5000.0,0.00019983,2]
[408151737,1773180651236,-5000.0,0.00019983,2]
[408151738,1773180651246,-5000.0,0.00019983,2]
[408151739,1773180651255,-3534.676574,0.00019983,2]
[408151740,1773180651264,-151.0,0.00019983,2]
[408151741,1773180651273,-151.0,0.00019983,2]
[408151742,1773180651283,-151.0,0.00019983,2]
[408151743,1773180651292,-151.0,0.00019983,2]
[408151744,1773180651301,-151.0,0.00019983,2]
[408151745,1773180651310,-151.0,0.00019983,2]
[408151746,1773180651319,-151.0,0.00019983,2]
[408151747,1773180651329,-199.540689,0.00019983,2]
[408151748,1773180651340,-197.527773,0.00019983,2]
[408151749,1773180651350,-151.0,0.00019983,2]
[408151750,1773180651359,-151.0,0.00019983,2]
[408151751,1773180651369,-151.0,0.00019983,2]
[408151752,1773180651379,-199.730346,0.00019983,2]
[408151753,1773180651388,-289.92372072,0.00019989,2]
[408151754,1773180651398,-151.0,0.00019997,2]
[408151755,1773180651407,-151.0,0.00019997,2]
[408151756,1773180651417,-510.25,0.00019998,2]
[408151757,1773180651426,-510.25,0.00019998,2]
[408151758,1773180651435,-510.25,0.00019998,2]
[408151759,1773180651444,-510.25,0.00019998,2]
[408151760,1773180651453,-500.0,0.00019998,2]
[408151761,1773180651463,-500.0,0.00019998,2]
[408151762,1773180651472,-500.0,0.00019998,2]
[408151763,1773180651481,-500.0,0.00019998,2]
[408151764,1773180651491,-300.0,0.00019999,2]
[408151765,1773180651500,-300.0,0.00019999,2]
[408151766,1773180651509,-666.0,0.00019999,2]
[408151767,1773180651518,-155.0,0.00019999,2]
[408151768,1773180651528,-500.0,0.00019999,2]
[408151769,1773180651538,-500.0,0.00019999,2]
[408151770,1773180651547,-500.0,0.00019999,2]
[408151771,1773180651557,-500.0,0.00019999,2]
[408151772,1773180651567,-500.0,0.00019999,2]
[408151773,1773180651577,-500.0,0.00019999,2]
[408151774,1773180651586,-500.0,0.00019999,2]
[408151775,1773180651597,-500.0,0.00019999,2]
[408151776,1773180651607,-500.0,0.00019999,2]
[408151777,1773180651616,-500.0,0.00019999,2]
[408151778,1773180651626,-500.0,0.00019999,2]
[408151779,1773180651635,-500.0,0.00019999,2]
[408151780,1773180651645,-500.0,0.00019999,2]
[408151781,1773180651654,-500.0,0.00019999,2]
[408151782,1773180651664,-500.0,0.00019999,2]
[408151783,1773180651673,-500.0,0.00019999,2]
[408151784,1773180651683,-500.0,0.00019999,2]
[408151785,1773180651694,-500.0,0.00019999,2]
[408151786,1773180651705,-500.0,0.00019999,2]
[408151787,1773180651715,-500.0,0.00019999,2]
[408151788,1773180651725,-500.0,0.00019999,2]
[408151789,1773180651736,-557.7,0.00019999,2]
[408151790,1773180651746,-510.25,0.00019999,2]
[408151791,1773180651760,-510.25,0.00019999,2]
[408151792,1773180651771,-510.25,0.00019999,2]
[408151793,1773180651781,-510.25,0.00019999,2]
[408151794,1773180651791,-510.25,0.00019999,2]
[408151795,1773180651800,-510.45,0.00019999,2]
[408151796,1773180651810,-500.0,0.00019999,2]
[408151797,1773180651820,-500.0,0.00019999,2]
[408151798,1773180651829,-258.34111407,0.00019999,2]
[408151799,1773180651840,-640.18899038,0.00019999,5]
[408151800,1773180651849,-620.3,0.00019999,2]
[408151801,1773180651861,-48675.02321131,0.00019999,2]
[408151802,1773180651871,-795.22,0.00019999,2]
[408151803,1773180651881,-795.22,0.00019999,2]
[408151804,1773180651891,-795.22,0.00019999,2]
[408151805,1773180651901,-795.22,0.00019999,2]
[408151806,1773180651910,-795.22,0.00019999,2]
[408151807,1773180651920,-795.22,0.00019999,2]
[408151808,1773180651930,-795.22,0.00019999,2]
[408151809,1773180651939,-795.29799988,0.00019999,2]
[408151810,1773180651950,-1095.49569653,0.00019999,5]
[408151811,1773180651960,-500.0,0.00019999,2]
[408151812,1773180651971,-500.0,0.00019999,2]
[408151813,1773180651981,-500.0,0.00019999,2]
[408151814,1773180651991,-491.94249388,0.00019999,2]
[408151815,1773180652000,-151.0,0.00019999,2]
[408151816,1773180652010,-151.0,0.00019999,2]
[408151817,1773180652020,-151.0,0.00019999,2]
[408151818,1773180652030,-2028.464853,0.00019999,2]
[408151819,1773180652040,-151.0,0.00019999,2]
[408151820,1773180652049,-2028.464853,0.00019999,2]
[408151821,1773180652059,-151.0,0.00019999,2]
[408151822,1773180652069,-2028.464853,0.00019999,2]
[408151823,1773180652078,-2028.464853,0.00019999,2]
[408151824,1773180652089,-500.0,0.00019999,2]
[408151825,1773180652102,-396.38337772,0.00019999,2]
[408151826,1773180652112,-2838791.38443352,0.0002,2]
[408151827,1773180652122,-407.22899406,0.0002,2]
[408151828,1773180652132,-1165943.21305343,0.0002,2]
[408151829,1773180653232,-4130.39922894,0.0002,2]
[408151830,1773180653243,-3400.15,0.0002,2]
[408151831,1773180653255,-72145.04198734,0.0002,2]
[408151832,1773180653266,-4135.16098696,0.0002,2]
[408151833,1773180653277,-40706.89289354,0.0002,2]
[408151834,1773180653366,-652.56164877,0.00019394,2]
[408151835,1773180653385,-589.68867437,0.00019394,2]
[408151836,1773180653401,-4752.74967686,0.00019394,2]
[408151837,1773180653410,-4715482.88178675,0.0002,2]
[408151838,1773180653419,-200.25,0.0002,5]
[408151839,1773180653430,-1131.97310655,0.0002,2]
[408151840,1773180653439,-628106.75,0.0002,2]
[408151841,1773180653449,-500.43,0.0002,7]
[408151842,1773180653458,-1216613.75189984,0.0002,2]
[408151843,1773180653568,-151.0,0.00019983,2]
[408151844,1773180653577,-196.67356,0.0002,2]
[408151845,1773180653660,-151.0,0.00019983,2]
[408151846,1773180653671,-243799.0,0.0002,2]
[408151847,1773180653682,-258.53800555,0.0002,2]
[408151848,1773180653695,-1917.26957252,0.0002,2]
[408151849,1773180728932,352.01299132,0.00014131,2]
[408151850,1773180747602,500.0,9.158e-05,2]
[408151851,1773180748113,979.29989179,9.158e-05,2]
[408151852,1773180777173,300.0,0.000136,4]
[408151853,1773180779268,600.0,0.000137,5]
[408151854,1773180781355,900.0,0.000138,5]
[408151855,1773180783462,1200.0,0.000139,5]
[408151856,1773180810608,4405.53427524,0.00014131,2]
[408151857,1773180819055,800.0,0.000136,4]
[408151858,1773180821153,1600.0,0.000137,5]
[408151859,1773180823247,2400.0,0.000138,5]
[408151860,1773180825336,3200.0,0.000139,5]
[408151861,1773180835203,5604.99946997,0.00014131,2]
[408151862,1773180960208,2695.69,0.0002,120]
[408151863,1773181003132,270.67,0.00013922,2]
[408151864,1773181004176,17008.81735892,0.00014131,2]
[408151865,1773181010888,1600.0,0.0001389,2]
[408151866,1773181028480,4904.37453625,0.00014131,2]
[408151867,1773181029123,196.5579505,0.00014131,2]
[408151868,1773181041240,500.0,9.158e-05,2]
[408151869,1773181041479,500.0,9.158e-05,2]
[408151870,1773181043097,500.0,9.158e-05,2]
[408151871,1773181043143,500.0,9.158e-05,2]
[408151872,1773181043219,500.0,9.158e-05,2]
[408151873,1773181043396,500.0,9.158e-05,2]
[408151874,1773181043892,500.0,9.158e-05,2]
[408151875,1773181044341,524.69213609,9.158e-05,2]
[408151876,1773181049168,500.0,9.158e-05,2]
[408151877,1773181049297,9656.69,0.0001382,2]
[408151878,1773181049565,500.0,9.158e-05,2]
[408151879,1773181049670,500.0,9.158e-05,2]
[408151880,1773181049700,500.0,9.158e-05,2]
[408151881,1773181050039,500.0,9.158e-05,2]
[408151882,1773181050191,500.0,9.158e-05,2]
[408151883,1773181050643,500.0,9.158e-05,2]
[408151884,1773181050697,500.0,9.158e-05,2]
[408151885,1773181050918,500.0,9.158e-05,2]
[408151886,1773181051233,500.0,9.158e-05,2]
[408151887,1773181051696,500.0,9.158e-05,2]
[408151888,1773181052434,500.0,9.158e-05,2]
[408151889,1773181052887,500.0,9.158e-05,2]
[408151890,1773181054364,500.0,9.158e-05,2]
[408151891,1773181054554,500.0,9.158e-05,2]
[408151892,1773181054841,500.0,9.158e-05,2]
[408151893,1773181066008,202.24362202,0.00014079,2]
[408151894,1773181075855,2055.95,0.0001382,2]
[408151896,1773181105702,1435.41,0.00013722,2]
[408151897,1773181107715,360.72513598,0.00014131,2]
[408151898,1773181113114,163.7982921,0.00014131,2]
[408151899,1773181113357,3411.1,0.00013722,2]
[408151900,1773181186626,200.0,0.00013744,2]
[408151901,1773181190287,196.35757158,0.00014131,2]
[408151902,1773181197213,163.79829208,0.00014131,2]
[408151903,1773181202286,6167.7479853,0.00014131,2]
[408151904,1773181212456,250.0,0.00014131,2]
[408151905,1773181212910,347.97,0.00014079,2]
[408151906,1773181221986,4291.32771921,0.00014131,2]
[408151907,1773181223912,8112.57,0.00013726,2]
[408151908,1773181226864,32323.305,0.00014081,2]
[408151910,1773181265765,164.14,0.00011001,2]
[408151911,1773181281119,250.0,0.00014131,2]
[408151912,1773181281572,6751.2313,0.00014081,2]
[408151913,1773181360674,150.0,0.00013658,2]
[408151914,1773181382948,2828.6681,0.00014081,2]
[408151915,1773181389188,98377.6973,0.00014081,2]
[408151916,1773181569365,495.486398,0.00013472,2]
[408151917,1773181638003,1815.03,0.00013444,2]
[408151918,1773181657259,500.0,0.000136,4]
[408151919,1773181659364,1100.0,0.000137,5]
[408151920,1773181661447,1700.0,0.000138,5]
[408151921,1773181663550,2300.0,0.000139,5]
[408151922,1773181713705,1897.345764,0.00014087,2]
[408151923,1773181726934,164.87465773,0.00014066,2]
[408151924,1773181748421,520.93,0.00013354,2]
[408151925,1773181761159,160.15301702,0.000141,2]
[408151928,1773181786836,2287.495079,0.00014087,2]
[408151929,1773181807299,5054.0,0.000141,3]
[408151930,1773181813896,1351546.59570312,0.0001408,2]
[408151931,1773181813930,1148453.40429688,0.0001408,2]
[408151932,1773181815544,4117.16905457,0.000141,2]
[408151933,1773181815827,882.84094543,0.00014081,2]
[408151934,1773181815848,5530.71335912,0.00014081,2]
[408151939,1773181831380,-163.0,0.00014158,2]
[408151940,1773181831390,-166.0,0.00014158,2]
[408151941,1773181831400,-193.0,0.00014162,2]
[408151942,1773181831409,-1753.79860427,0.00014166,2]
[408151943,1773181831420,-302.15139573,0.00014166,2]
[408151944,1773181831430,-1200.0,0.00014166,2]
[408151945,1773181831439,-300.0,0.00014166,2]
[408151946,1773181831448,-287.11167987,0.00014166,2]
[408151947,1773181831458,-3891.2281793,0.00014167,2]
[408151948,1773181831467,-300.0,0.00014167,2]
[408151949,1773181831476,-300.0,0.00014167,2]
[408151950,1773181831486,-300.0,0.00014167,2]
[408151951,1773181831495,-500.0,0.00014167,2]
[408151952,1773181831504,-300.0,0.00014167,2]
[408151953,1773181831515,-1148.0,0.00014168,2]
[408151954,1773181831524,-5550.97318677,0.00014169,2]
[408151955,1773181831534,-708.96704962,0.00014171,2]
[408151956,1773181831543,-151.0,0.00014178,2]
[408151957,1773181831553,-151.0,0.00014178,2]
[408151958,1773181831562,-150.0,0.00014179,2]
[408151959,1773181831571,-537.25164247,0.00014179,2]
[408151960,1773181831580,-340.4692958,0.00014179,2]
[408151961,1773181831590,-460.11428268,0.00014179,2]
[408151962,1773181831599,-307.13212419,0.00014179,2]
[408151963,1773181831609,-793.39636932,0.00014179,2]
[408151964,1773181831619,-793.39636932,0.00014179,2]
[408151965,1773181831628,-793.39636932,0.00014179,2]
[408151966,1773181831637,-793.39636932,0.00014179,2]
[408151968,1773181831647,-793.39636932,0.00014179,2]
[408151970,1773181831656,-793.39636932,0.00014179,2]
[408151971,1773181831666,-793.39636932,0.00014179,2]
[408151972,1773181831675,-793.39636932,0.00014179,2]
[408151973,1773181831685,-793.39636932,0.00014179,2]
[408151974,1773181831694,-793.39636932,0.00014179,2]
[408151975,1773181831703,-793.39636932,0.00014179,2]
[408151976,1773181831712,-793.39636932,0.00014179,2]
[408151977,1773181831722,-793.39636932,0.00014179,2]
[408151978,1773181831731,-793.39636932,0.00014179,2]
[408151979,1773181831740,-793.39636932,0.00014179,2]
[408151980,1773181831749,-793.39636932,0.00014179,2]
[408151981,1773181831758,-793.39636932,0.00014179,2]
[408151982,1773181831767,-793.39636932,0.00014179,2]
[408151983,1773181831776,-793.39636932,0.00014179,2]
[408151984,1773181831785,-793.39636932,0.00014179,2]
[408151985,1773181831794,-793.39636932,0.00014179,2]
[408151986,1773181831803,-793.39636932,0.00014179,2]
[408151987,1773181831812,-793.39636932,0.00014179,2]
[408151988,1773181831821,-793.39636932,0.00014179,2]
[408151989,1773181831830,-793.39636932,0.00014179,2]
[408151990,1773181831839,-793.39636932,0.00014179,2]
[408151991,1773181831847,-793.39636932,0.00014179,2]
[408151992,1773181831856,-793.39636932,0.00014179,2]
[408151993,1773181831865,-793.39636932,0.00014179,2]
[408151994,1773181831874,-793.39636932,0.00014179,2]
[408151995,1773181831883,-793.39636932,0.00014179,2]
[408151996,1773181831892,-793.39636932,0.00014179,2]
[408151997,1773181831901,-793.39636932,0.00014179,2]
[408151998,1773181831910,-793.39636932,0.00014179,2]
[408151999,1773181831919,-793.39636932,0.00014179,2]
[408152000,1773181831928,-793.39636932,0.00014179,2]
[408152001,1773181831937,-793.39636932,0.00014179,2]
[408152002,1773181831946,-793.39636932,0.00014179,2]
[408152003,1773181831955,-793.39636932,0.00014179,2]
[408152004,1773181831964,-793.39636932,0.00014179,2]
[408152005,1773181831972,-500.0,0.00014179,2]
[408152006,1773181831981,-500.0,0.00014179,2]
[408152007,1773181831991,-590.1427638,0.00014179,2]
[408152008,1773181831999,-790.02021455,0.00014179,2]
[408152009,1773181832008,-790.02021455,0.00014179,2]
[408152010,1773181832017,-790.02021455,0.00014179,2]
[408152011,1773181832030,-790.02021455,0.00014179,2]
[408152012,1773181832039,-790.02021455,0.00014179,2]
[408152013,1773181832048,-790.02021455,0.00014179,2]
[408152014,1773181832057,-790.02021455,0.00014179,2]
[408152015,1773181832067,-790.02021455,0.00014179,2]
[408152017,1773181832076,-790.02021455,0.00014179,2]
[408152018,1773181832085,-790.02021455,0.00014179,2]
[408152019,1773181832094,-790.02021455,0.00014179,2]
[408152020,1773181832104,-790.02021455,0.00014179,2]